[Event "Early-Titled-Tuesday-Blitz-April-23-2024"]
[Site "Chess.com"]
[Date "2024.04.23"]
[Round "5"]
[White "Mikhail_Bryakin"]
[Black "Smiechu"]
[Result "1-0"]
[WhiteElo "2854"]
[BlackElo "2469"]
[TimeControl "180+1"]
[EndTime "8:58:20 PDT"]
[Termination "Mikhail_Bryakin won by checkmate"]

1. c4 {[%clk 0:02:57.5]} 1... Nf6 {[%clk 0:02:57.9]} 2. g3 {[%clk 0:02:57.2]}
2... c5 {[%clk 0:02:57.3]} 3. Bg2 {[%clk 0:02:57.7]} 3... Nc6 {[%clk 0:02:57.1]}
4. Nc3 {[%clk 0:02:58.3]} 4... g6 {[%clk 0:02:57.6]} 5. Nf3 {[%clk 0:02:58.3]}
5... Bg7 {[%clk 0:02:57.8]} 6. O-O {[%clk 0:02:59.2]} 6... O-O {[%clk
0:02:57.9]} 7. e3 {[%clk 0:02:59.9]} 7... d6 {[%clk 0:02:49.9]} 8. d4 {[%clk
0:02:59.8]} 8... cxd4 {[%clk 0:02:45.8]} 9. exd4 {[%clk 0:03:00.7]} 9... e5
{[%clk 0:02:46.3]} 10. d5 {[%clk 0:03:00.8]} 10... Ne7 {[%clk 0:02:45.5]} 11.
Nd2 {[%clk 0:02:58.9]} 11... a6 {[%clk 0:02:33.5]} 12. a4 {[%clk 0:02:58.3]}
12... Nd7 {[%clk 0:02:33.4]} 13. a5 {[%clk 0:02:54.7]} 13... f5 {[%clk
0:02:32.7]} 14. Nb3 {[%clk 0:02:48.9]} 14... e4 {[%clk 0:02:28.3]} 15. Be3
{[%clk 0:02:48.3]} 15... Ne5 {[%clk 0:02:23]} 16. Qe2 {[%clk 0:02:46.5]} 16...
h6 {[%clk 0:02:08.6]} 17. c5 {[%clk 0:02:36.4]} 17... g5 {[%clk 0:01:57.9]} 18.
Bd4 {[%clk 0:02:29.5]} 18... dxc5 {[%clk 0:01:50.4]} 19. Bxc5 {[%clk 0:02:26.6]}
19... Kh8 {[%clk 0:01:42.6]} 20. d6 {[%clk 0:02:22.4]} 20... N7g6 {[%clk
0:01:38.7]} 21. d7 {[%clk 0:02:09.1]} 21... Bxd7 {[%clk 0:01:33.3]} 22. Bxf8
{[%clk 0:02:08.4]} 22... Qxf8 {[%clk 0:01:32.6]} 23. Rfd1 {[%clk 0:02:06.1]}
23... Bc6 {[%clk 0:01:31.6]} 24. Nd4 {[%clk 0:02:05.3]} 24... Nd3 {[%clk
0:01:14.4]} 25. Nxc6 {[%clk 0:02:03.3]} 25... bxc6 {[%clk 0:01:13.8]} 26. Nxe4
{[%clk 0:01:47.2]} 26... fxe4 {[%clk 0:01:10.3]} 27. Qxe4 {[%clk 0:01:47.6]}
27... Qxf2+ {[%clk 0:00:59.9]} 28. Kh1 {[%clk 0:01:46.1]} 28... Ndf4 {[%clk
0:00:49.7]} 29. gxf4 {[%clk 0:01:37.9]} 29... Nxf4 {[%clk 0:00:49]} 30. Qxc6
{[%clk 0:01:35.3]} 30... Rb8 {[%clk 0:00:42.6]} 31. Rab1 {[%clk 0:01:06.9]}
31... Qh4 {[%clk 0:00:21.7]} 32. Rd7 {[%clk 0:01:00.2]} 32... Nxg2 {[%clk
0:00:15.9]} 33. Rxg7 {[%clk 0:00:42.1]} 33... Kxg7 {[%clk 0:00:14.4]} 34. Qc7+
{[%clk 0:00:41.9]} 34... Kg6 {[%clk 0:00:14.3]} 35. Qd6+ {[%clk 0:00:40.8]}
35... Kh5 {[%clk 0:00:12.9]} 36. Qd1+ {[%clk 0:00:21.9]} 36... Qg4 {[%clk
0:00:13.2]} 37. Qxg4+ {[%clk 0:00:19.1]} 37... Kxg4 {[%clk 0:00:14.1]} 38. Kxg2
{[%clk 0:00:19.7]} 38... Rb3 {[%clk 0:00:14.5]} 39. Kg1 {[%clk 0:00:18.8]} 39...
h5 {[%clk 0:00:14.6]} 40. Kh1 {[%clk 0:00:17.9]} 40... h4 {[%clk 0:00:15]} 41.
Kg1 {[%clk 0:00:18.6]} 41... Kh3 {[%clk 0:00:14.1]} 42. Kh1 {[%clk 0:00:17.1]}
42... g4 {[%clk 0:00:14.2]} 43. Kg1 {[%clk 0:00:17]} 43... Rd3 {[%clk
0:00:12.6]} 44. b4 {[%clk 0:00:16.5]} 44... Rd2 {[%clk 0:00:10.8]} 45. b5 {[%clk
0:00:16.6]} 45... Rg2+ {[%clk 0:00:09.9]} 46. Kf1 {[%clk 0:00:15.6]} 46... axb5
{[%clk 0:00:05.6]} 47. Ra1 {[%clk 0:00:14.7]} 47... Rxh2 {[%clk 0:00:05.1]} 48.
Ra3+ {[%clk 0:00:15.4]} 48... g3 {[%clk 0:00:05.1]} 49. a6 {[%clk 0:00:16.3]}
49... Rh1+ {[%clk 0:00:03.7]} 50. Ke2 {[%clk 0:00:16.7]} 50... Rh2+ {[%clk
0:00:02.9]} 51. Kf1 {[%clk 0:00:16]} 51... b4 {[%clk 0:00:03.2]} 52. a7 {[%clk
0:00:15.5]} 52... bxa3 {[%clk 0:00:03.5]} 53. a8=Q {[%clk 0:00:16.1]} 53... Rf2+
{[%clk 0:00:03]} 54. Kg1 {[%clk 0:00:16.8]} 54... a2 {[%clk 0:00:03.4]} 55. Qc8+
{[%clk 0:00:17.2]} 55... Rf5 {[%clk 0:00:02.2]} 56. Qxf5# {[%clk 0:00:17.5]} 1-0

[Event "Early-Titled-Tuesday-Blitz-April-23-2024"]
[Site "Chess.com"]
[Date "2024.04.23"]
[Round "5"]
[White "Aryan_Tamadon"]
[Black "Masterbeaterr"]
[Result "1-0"]
[WhiteElo "2634"]
[BlackElo "2479"]
[TimeControl "180+1"]
[EndTime "8:58:23 PDT"]
[Termination "Aryan_Tamadon won by resignation"]

1. Nf3 {[%clk 0:02:58.4]} 1... d5 {[%clk 0:02:58.6]} 2. d4 {[%clk 0:02:55.4]}
2... Nf6 {[%clk 0:02:57.6]} 3. c4 {[%clk 0:02:53.2]} 3... dxc4 {[%clk
0:02:58.5]} 4. e3 {[%clk 0:02:52]} 4... e6 {[%clk 0:02:58.6]} 5. Bxc4 {[%clk
0:02:51.5]} 5... c5 {[%clk 0:02:59.2]} 6. O-O {[%clk 0:02:51.3]} 6... Nc6 {[%clk
0:02:59.4]} 7. a3 {[%clk 0:02:51]} 7... cxd4 {[%clk 0:02:58.5]} 8. exd4 {[%clk
0:02:51.9]} 8... Be7 {[%clk 0:02:58.3]} 9. Nc3 {[%clk 0:02:52.3]} 9... O-O
{[%clk 0:02:58.4]} 10. Be3 {[%clk 0:02:51.4]} 10... Na5 {[%clk 0:02:58.3]} 11.
Ba2 {[%clk 0:02:46.7]} 11... b6 {[%clk 0:02:58.8]} 12. b4 {[%clk 0:02:45.6]}
12... Nb7 {[%clk 0:02:51.5]} 13. d5 {[%clk 0:02:44]} 13... exd5 {[%clk
0:02:49.7]} 14. Nxd5 {[%clk 0:02:44.9]} 14... Nxd5 {[%clk 0:02:48.9]} 15. Bxd5
{[%clk 0:02:38.6]} 15... Bf6 {[%clk 0:02:43.7]} 16. Rc1 {[%clk 0:02:19.7]} 16...
Qe7 {[%clk 0:02:42.6]} 17. Bf4 {[%clk 0:02:12.3]} 17... Rd8 {[%clk 0:02:18.5]}
18. Re1 {[%clk 0:02:01.7]} 18... Qf8 {[%clk 0:02:16.9]} 19. Bc7 {[%clk
0:01:47.4]} 19... Be6 {[%clk 0:02:06.6]} 20. Bxd8 {[%clk 0:01:26]} 20... Rxd8
{[%clk 0:02:07.5]} 21. Rxe6 {[%clk 0:01:04.4]} 21... fxe6 {[%clk 0:02:04]} 22.
Bxe6+ {[%clk 0:01:05.3]} 22... Kh8 {[%clk 0:02:03.4]} 23. Qa4 {[%clk 0:01:00.2]}
23... Qd6 {[%clk 0:01:52.7]} 24. Bb3 {[%clk 0:00:52]} 24... a5 {[%clk
0:01:52.7]} 25. g3 {[%clk 0:00:45.6]} 25... g5 {[%clk 0:01:25.6]} 26. Qc6 {[%clk
0:00:31]} 26... Qxc6 {[%clk 0:01:18.5]} 27. Rxc6 {[%clk 0:00:31.9]} 27... Rd6
{[%clk 0:01:18.9]} 28. Rc8+ {[%clk 0:00:31]} 28... Rd8 {[%clk 0:01:18.8]} 29.
Rc7 {[%clk 0:00:30]} 29... Nd6 {[%clk 0:01:18.9]} 30. Bc2 {[%clk 0:00:26.8]}
30... Rc8 {[%clk 0:01:03]} 31. Rxh7+ {[%clk 0:00:19.8]} 31... Kg8 {[%clk
0:01:03.1]} 32. Bg6 {[%clk 0:00:20.5]} 32... axb4 {[%clk 0:01:02.3]} 33. axb4
{[%clk 0:00:21.4]} 33... Rc4 {[%clk 0:00:56.6]} 34. Rd7 {[%clk 0:00:20.5]} 34...
Rc1+ {[%clk 0:00:52.2]} 35. Kg2 {[%clk 0:00:20.7]} 35... Nc4 {[%clk 0:00:50.1]}
36. Bf7+ {[%clk 0:00:16]} 36... Kf8 {[%clk 0:00:48.2]} 37. Bxc4 {[%clk
0:00:12.1]} 37... Rxc4 {[%clk 0:00:47.2]} 38. Rd6 {[%clk 0:00:12.8]} 38... Kg7
{[%clk 0:00:39.2]} 39. Rxb6 {[%clk 0:00:12.7]} 39... g4 {[%clk 0:00:39.7]} 40.
Nd2 {[%clk 0:00:13.2]} 40... Rc2 {[%clk 0:00:39]} 41. Ne4 {[%clk 0:00:13.2]}
41... Bd4 {[%clk 0:00:38.9]} 42. Rd6 {[%clk 0:00:11.9]} 42... Be5 {[%clk
0:00:34.4]} 43. Rd5 {[%clk 0:00:11.2]} 43... Bc7 {[%clk 0:00:31]} 44. b5 {[%clk
0:00:09.2]} 44... Kf7 {[%clk 0:00:28.3]} 45. Rc5 {[%clk 0:00:07.4]} 45... Rxc5
{[%clk 0:00:25.5]} 46. Nxc5 {[%clk 0:00:08.3]} 46... Ke7 {[%clk 0:00:26.2]} 47.
f3 {[%clk 0:00:07]} 47... gxf3+ {[%clk 0:00:25.7]} 48. Kxf3 {[%clk 0:00:06.8]}
48... Bb6 {[%clk 0:00:26.6]} 49. Ne4 {[%clk 0:00:06.8]} 49... Ke6 {[%clk
0:00:26.2]} 50. h4 {[%clk 0:00:07.7]} 50... Kf5 {[%clk 0:00:26.4]} 51. g4+
{[%clk 0:00:07.7]} 51... Ke5 {[%clk 0:00:26.7]} 52. h5 {[%clk 0:00:08.3]} 52...
Bd4 {[%clk 0:00:26.5]} 53. g5 {[%clk 0:00:08.4]} 53... Kf5 {[%clk 0:00:26.6]}
54. g6 {[%clk 0:00:08.3]} 54... Ke6 {[%clk 0:00:25.4]} 55. Kg4 {[%clk
0:00:08.3]} 55... Ke7 {[%clk 0:00:23.1]} 56. h6 {[%clk 0:00:08.9]} 56... Kf8
{[%clk 0:00:23.5]} 57. Kf5 {[%clk 0:00:09.6]} 57... Kg8 {[%clk 0:00:23.3]} 58.
Ke6 {[%clk 0:00:10.5]} 58... Kh8 {[%clk 0:00:23.4]} 59. h7 {[%clk 0:00:11.4]}
59... Kg7 {[%clk 0:00:23.3]} 60. Nd6 {[%clk 0:00:10.9]} 60... Kh8 {[%clk
0:00:22.7]} 61. Nf7+ {[%clk 0:00:10.2]} 61... Kg7 {[%clk 0:00:23.1]} 62. h8=Q+
{[%clk 0:00:11.1]} 62... Kxg6 {[%clk 0:00:24]} 1-0

[Event "Early-Titled-Tuesday-Blitz-April-23-2024"]
[Site "Chess.com"]
[Date "2024.04.23"]
[Round "5"]
[White "JoliyRoger"]
[Black "TacticalSam94"]
[Result "1-0"]
[WhiteElo "2415"]
[BlackElo "2210"]
[TimeControl "180+1"]
[EndTime "8:58:23 PDT"]
[Termination "JoliyRoger won by checkmate"]

1. d4 {[%clk 0:02:55.8]} 1... Nf6 {[%clk 0:02:58]} 2. c4 {[%clk 0:02:55.9]} 2...
e6 {[%clk 0:02:57.7]} 3. Nc3 {[%clk 0:02:53.8]} 3... Bb4 {[%clk 0:02:58.2]} 4.
a3 {[%clk 0:02:53.4]} 4... Bxc3+ {[%clk 0:02:56.7]} 5. bxc3 {[%clk 0:02:53.8]}
5... O-O {[%clk 0:02:56.3]} 6. f3 {[%clk 0:02:54.2]} 6... d6 {[%clk 0:02:55.9]}
7. e4 {[%clk 0:02:54.6]} 7... Nc6 {[%clk 0:02:55.6]} 8. Be3 {[%clk 0:02:54.6]}
8... e5 {[%clk 0:02:55.8]} 9. Ne2 {[%clk 0:02:53.9]} 9... b6 {[%clk 0:02:55.4]}
10. Nc1 {[%clk 0:02:53.9]} 10... Ba6 {[%clk 0:02:54.6]} 11. Nb3 {[%clk
0:02:52.1]} 11... Qe7 {[%clk 0:02:52.7]} 12. Be2 {[%clk 0:02:46.9]} 12... Nh5
{[%clk 0:02:42.8]} 13. O-O {[%clk 0:02:44.3]} 13... Nf4 {[%clk 0:02:42.6]} 14.
Bxf4 {[%clk 0:02:37]} 14... exf4 {[%clk 0:02:43.5]} 15. a4 {[%clk 0:02:35.6]}
15... f5 {[%clk 0:02:30.7]} 16. exf5 {[%clk 0:02:21.2]} 16... Rxf5 {[%clk
0:02:24]} 17. Bd3 {[%clk 0:02:18.7]} 17... Rff8 {[%clk 0:02:16.6]} 18. a5 {[%clk
0:02:18.7]} 18... Qf7 {[%clk 0:02:13.8]} 19. axb6 {[%clk 0:02:09.4]} 19... axb6
{[%clk 0:02:14.7]} 20. Qe2 {[%clk 0:01:53.3]} 20... Rfe8 {[%clk 0:02:09.2]} 21.
Qc2 {[%clk 0:01:53.3]} 21... Bxc4 {[%clk 0:02:06.7]} 22. Rxa8 {[%clk 0:01:52.2]}
22... Rxa8 {[%clk 0:02:04.2]} 23. Bxh7+ {[%clk 0:01:44.2]} 23... Kf8 {[%clk
0:01:54.9]} 24. Rb1 {[%clk 0:01:44.6]} 24... Na5 {[%clk 0:01:41]} 25. Nd2 {[%clk
0:01:39.8]} 25... Be6 {[%clk 0:01:30.5]} 26. Bg6 {[%clk 0:01:30.2]} 26... Qf6
{[%clk 0:01:09.4]} 27. Bd3 {[%clk 0:01:26.8]} 27... Nc4 {[%clk 0:00:51.4]} 28.
Nxc4 {[%clk 0:01:20.7]} 28... Qf7 {[%clk 0:00:20.6]} 29. Bg6 {[%clk 0:01:08.5]}
29... Qf6 {[%clk 0:00:17.7]} 30. Nb2 {[%clk 0:00:46.4]} 30... Ra2 {[%clk
0:00:17.3]} 31. Bd3 {[%clk 0:00:44.3]} 31... Qf7 {[%clk 0:00:16]} 32. Re1 {[%clk
0:00:42.4]} 32... Bb3 {[%clk 0:00:16.1]} 33. Qe2 {[%clk 0:00:39.4]} 33... b5
{[%clk 0:00:16.7]} 34. h3 {[%clk 0:00:37.5]} 34... g6 {[%clk 0:00:17.1]} 35. Kh2
{[%clk 0:00:36.3]} 35... Kg7 {[%clk 0:00:17.5]} 36. Bb1 {[%clk 0:00:33.1]} 36...
Qf6 {[%clk 0:00:18]} 37. Bxa2 {[%clk 0:00:28.6]} 37... Bxa2 {[%clk 0:00:18.9]}
38. Qe7+ {[%clk 0:00:26.5]} 38... Bf7 {[%clk 0:00:18.5]} 39. Qxf6+ {[%clk
0:00:25.7]} 39... Kxf6 {[%clk 0:00:19.4]} 40. Nd3 {[%clk 0:00:24]} 40... g5
{[%clk 0:00:16.7]} 41. h4 {[%clk 0:00:23.5]} 41... gxh4 {[%clk 0:00:16.3]} 42.
Nxf4 {[%clk 0:00:22.7]} 42... Kg5 {[%clk 0:00:16.9]} 43. Ne6+ {[%clk 0:00:21.6]}
43... Kf6 {[%clk 0:00:17]} 44. Nxc7 {[%clk 0:00:20.5]} 44... b4 {[%clk
0:00:17.9]} 45. cxb4 {[%clk 0:00:18.4]} 45... h3 {[%clk 0:00:18.8]} 46. gxh3
{[%clk 0:00:16.7]} 46... d5 {[%clk 0:00:18.9]} 47. b5 {[%clk 0:00:17.4]} 47...
Kg5 {[%clk 0:00:18.9]} 48. b6 {[%clk 0:00:18.1]} 48... Kf4 {[%clk 0:00:16.7]}
49. b7 {[%clk 0:00:17.8]} 49... Be6 {[%clk 0:00:11.2]} 50. b8=Q {[%clk
0:00:18.7]} 50... Bf5 {[%clk 0:00:10.5]} 51. Nxd5+ {[%clk 0:00:17.7]} 51... Kxf3
{[%clk 0:00:10.5]} 52. Qg3# {[%clk 0:00:17.6]} 1-0

[Event "Early-Titled-Tuesday-Blitz-April-23-2024"]
[Site "Chess.com"]
[Date "2024.04.23"]
[Round "5"]
[White "blitzking1729"]
[Black "JeFumeDesClopes"]
[Result "1-0"]
[WhiteElo "2763"]
[BlackElo "2598"]
[TimeControl "180+1"]
[EndTime "8:58:24 PDT"]
[Termination "blitzking1729 won by resignation"]

1. Nf3 {[%clk 0:03:00.9]} 1... g6 {[%clk 0:02:59.1]} 2. c4 {[%clk 0:03:01.2]}
2... Bg7 {[%clk 0:02:59.5]} 3. Nc3 {[%clk 0:03:02.1]} 3... c5 {[%clk 0:02:59.4]}
4. e3 {[%clk 0:03:01.4]} 4... Nf6 {[%clk 0:02:57.6]} 5. d4 {[%clk 0:03:01.7]}
5... O-O {[%clk 0:02:58.3]} 6. d5 {[%clk 0:03:01]} 6... e6 {[%clk 0:02:57.1]} 7.
e4 {[%clk 0:03:00.9]} 7... d6 {[%clk 0:02:53.9]} 8. Be2 {[%clk 0:02:59.2]} 8...
Na6 {[%clk 0:02:54.1]} 9. O-O {[%clk 0:02:58.8]} 9... Nc7 {[%clk 0:02:54.2]} 10.
Bf4 {[%clk 0:02:48.9]} 10... e5 {[%clk 0:02:53.8]} 11. Bd2 {[%clk 0:02:47.2]}
11... Nh5 {[%clk 0:02:52.5]} 12. h3 {[%clk 0:02:43.1]} 12... Nf4 {[%clk
0:02:51]} 13. Re1 {[%clk 0:02:38.3]} 13... Nxe2+ {[%clk 0:02:50.9]} 14. Qxe2
{[%clk 0:02:37.3]} 14... h6 {[%clk 0:02:49.9]} 15. a3 {[%clk 0:02:34.3]} 15...
f5 {[%clk 0:02:48.8]} 16. b4 {[%clk 0:02:34]} 16... b6 {[%clk 0:02:48.9]} 17.
Reb1 {[%clk 0:02:28.9]} 17... g5 {[%clk 0:02:40.2]} 18. exf5 {[%clk 0:02:27.9]}
18... Bxf5 {[%clk 0:02:39.3]} 19. Ne4 {[%clk 0:02:27.8]} 19... Na6 {[%clk
0:02:26.4]} 20. Nh2 {[%clk 0:02:24.8]} 20... Qe7 {[%clk 0:02:10]} 21. Nf1 {[%clk
0:02:23.6]} 21... Bg6 {[%clk 0:02:05]} 22. Nfg3 {[%clk 0:02:22.3]} 22... Rad8
{[%clk 0:01:51.1]} 23. Re1 {[%clk 0:02:09.2]} 23... Qf7 {[%clk 0:01:41.2]} 24.
Qd1 {[%clk 0:02:07.1]} 24... Bf6 {[%clk 0:01:36.5]} 25. Qa4 {[%clk 0:02:03.9]}
25... Qb7 {[%clk 0:01:32]} 26. Rab1 {[%clk 0:01:50.4]} 26... cxb4 {[%clk
0:00:48.9]} 27. axb4 {[%clk 0:01:48.5]} 27... Nc7 {[%clk 0:00:48.9]} 28. b5
{[%clk 0:01:24.9]} 28... Be7 {[%clk 0:00:42.9]} 29. Ra1 {[%clk 0:01:11.6]} 29...
Ra8 {[%clk 0:00:42.3]} 30. Bb4 {[%clk 0:01:11.3]} 30... Ne8 {[%clk 0:00:30.1]}
31. Qa3 {[%clk 0:01:05.4]} 31... Qc7 {[%clk 0:00:29.8]} 32. Rec1 {[%clk
0:01:03.5]} 32... h5 {[%clk 0:00:28.4]} 33. Qe3 {[%clk 0:01:02]} 33... h4 {[%clk
0:00:26.2]} 34. Nf1 {[%clk 0:01:00.5]} 34... Qd8 {[%clk 0:00:25.5]} 35. Nh2
{[%clk 0:00:57.9]} 35... Rf4 {[%clk 0:00:21]} 36. f3 {[%clk 0:00:44.1]} 36...
Nf6 {[%clk 0:00:21]} 37. Nd2 {[%clk 0:00:29.4]} 37... Nxd5 {[%clk 0:00:20.5]}
38. cxd5 {[%clk 0:00:28.5]} 38... Rxb4 {[%clk 0:00:21.1]} 39. Qe2 {[%clk
0:00:24.4]} 39... Qd7 {[%clk 0:00:19.8]} 40. Rc6 {[%clk 0:00:21.3]} 40... Bf6
{[%clk 0:00:17.5]} 41. Ng4 {[%clk 0:00:13.2]} 41... Be7 {[%clk 0:00:14.3]} 42.
Rac1 {[%clk 0:00:13.2]} 42... Bd8 {[%clk 0:00:12.9]} 43. Nxe5 {[%clk 0:00:12.3]}
43... Qe8 {[%clk 0:00:11.2]} 44. Rxd6 {[%clk 0:00:09.6]} 44... Rb2 {[%clk
0:00:09]} 45. Rxg6+ {[%clk 0:00:09.1]} 45... Kh7 {[%clk 0:00:07.8]} 46. Re6
{[%clk 0:00:09.5]} 46... Qf8 {[%clk 0:00:07.6]} 47. Qd3+ {[%clk 0:00:09]} 47...
Kg8 {[%clk 0:00:06.4]} 48. Qg6+ {[%clk 0:00:07.8]} 48... Kh8 {[%clk 0:00:06.5]}
49. Nf7+ {[%clk 0:00:06.4]} 1-0

[Event "Early-Titled-Tuesday-Blitz-April-23-2024"]
[Site "Chess.com"]
[Date "2024.04.23"]
[Round "5"]
[White "Nf3c5"]
[Black "Byniolus"]
[Result "0-1"]
[WhiteElo "2654"]
[BlackElo "2841"]
[TimeControl "180+1"]
[EndTime "8:58:27 PDT"]
[Termination "Byniolus won on time"]

1. e4 {[%clk 0:03:00.9]} 1... d6 {[%clk 0:03:00.3]} 2. d4 {[%clk 0:02:59.7]}
2... Nf6 {[%clk 0:03:01]} 3. Nc3 {[%clk 0:03:00]} 3... c6 {[%clk 0:03:01.3]} 4.
Bg5 {[%clk 0:02:52.1]} 4... Qb6 {[%clk 0:03:00.6]} 5. Rb1 {[%clk 0:02:41.8]}
5... Nbd7 {[%clk 0:02:58.6]} 6. f4 {[%clk 0:02:28.9]} 6... h6 {[%clk 0:02:53.5]}
7. Bh4 {[%clk 0:02:27.9]} 7... e5 {[%clk 0:02:51.1]} 8. Nf3 {[%clk 0:01:36.1]}
8... exf4 {[%clk 0:02:45.5]} 9. Bc4 {[%clk 0:01:24.2]} 9... g5 {[%clk
0:02:27.5]} 10. Bf2 {[%clk 0:01:20.5]} 10... Ng4 {[%clk 0:02:25.7]} 11. Bg1
{[%clk 0:01:18]} 11... Bg7 {[%clk 0:02:06.4]} 12. Qd3 {[%clk 0:01:16.6]} 12...
Qa5 {[%clk 0:01:53.3]} 13. h3 {[%clk 0:01:06.3]} 13... Ne3 {[%clk 0:01:47.4]}
14. Bxe3 {[%clk 0:01:04.8]} 14... fxe3 {[%clk 0:01:48.3]} 15. Qxe3 {[%clk
0:01:04.4]} 15... b5 {[%clk 0:01:43.6]} 16. Bb3 {[%clk 0:01:03.8]} 16... b4
{[%clk 0:01:26.9]} 17. Ne2 {[%clk 0:01:02.6]} 17... Ba6 {[%clk 0:01:17.1]} 18.
Ng3 {[%clk 0:01:01.5]} 18... O-O-O {[%clk 0:01:05.6]} 19. Kf2 {[%clk 0:00:55.6]}
19... c5 {[%clk 0:00:35.7]} 20. Bxf7 {[%clk 0:00:39.4]} 20... cxd4 {[%clk
0:00:22]} 21. Qd2 {[%clk 0:00:28]} 21... Ne5 {[%clk 0:00:18]} 22. Be6+ {[%clk
0:00:23.8]} 22... Kb8 {[%clk 0:00:18.3]} 23. Nf5 {[%clk 0:00:22.4]} 23... Bf6
{[%clk 0:00:17.5]} 24. a3 {[%clk 0:00:19.9]} 24... Qb6 {[%clk 0:00:14.9]} 25.
Qxb4 {[%clk 0:00:18.2]} 25... Rhe8 {[%clk 0:00:10.4]} 26. Qxb6+ {[%clk
0:00:17.2]} 26... axb6 {[%clk 0:00:11.3]} 27. Bd5 {[%clk 0:00:17.3]} 27... h5
{[%clk 0:00:09.5]} 28. Rhd1 {[%clk 0:00:14.9]} 28... Bb7 {[%clk 0:00:03.7]} 29.
Bxb7 {[%clk 0:00:13.1]} 29... Kxb7 {[%clk 0:00:03.9]} 30. N3xd4 {[%clk
0:00:13.6]} 30... Nc6 {[%clk 0:00:02.1]} 31. Nb5 {[%clk 0:00:12.1]} 31... Be5
{[%clk 0:00:02.2]} 32. Nbxd6+ {[%clk 0:00:11.2]} 32... Kc7 {[%clk 0:00:02.4]}
33. Nxe8+ {[%clk 0:00:10.4]} 33... Rxe8 {[%clk 0:00:03.3]} 34. Rd5 {[%clk
0:00:10]} 34... Bf6 {[%clk 0:00:01.8]} 35. Re1 {[%clk 0:00:09.1]} 35... Bxb2
{[%clk 0:00:02]} 36. a4 {[%clk 0:00:08]} 36... Ba3 {[%clk 0:00:02.5]} 37. c3
{[%clk 0:00:07.5]} 37... Bc5+ {[%clk 0:00:02.5]} 38. Kf1 {[%clk 0:00:06.4]}
38... g4 {[%clk 0:00:02.4]} 39. hxg4 {[%clk 0:00:06.1]} 39... hxg4 {[%clk
0:00:03.3]} 40. g3 {[%clk 0:00:06.3]} 40... Ne5 {[%clk 0:00:03.8]} 41. Kg2
{[%clk 0:00:05.7]} 41... Nf3 {[%clk 0:00:04.4]} 42. Red1 {[%clk 0:00:06.1]}
42... Rxe4 {[%clk 0:00:04.2]} 43. Rd7+ {[%clk 0:00:06]} 43... Kc6 {[%clk
0:00:04.8]} 44. R7d2 {[%clk 0:00:01.4]} 44... Nxd2 {[%clk 0:00:04.4]} 45. Rxd2
{[%clk 0:00:02.3]} 45... Rxa4 {[%clk 0:00:05.1]} 46. Nd4+ {[%clk 0:00:01.6]}
46... Bxd4 {[%clk 0:00:05.3]} 47. cxd4 {[%clk 0:00:02.5]} 47... b5 {[%clk
0:00:04.5]} 48. Rc2+ {[%clk 0:00:02.7]} 48... Kb6 {[%clk 0:00:04.4]} 49. Rc8
{[%clk 0:00:02.4]} 49... Rxd4 {[%clk 0:00:04]} 50. Rb8+ {[%clk 0:00:02.2]} 50...
Kc5 {[%clk 0:00:04.5]} 51. Rc8+ {[%clk 0:00:02.1]} 51... Kd5 {[%clk 0:00:04.9]}
52. Rd8+ {[%clk 0:00:02.1]} 52... Kc4 {[%clk 0:00:05.4]} 53. Rc8+ {[%clk
0:00:02.3]} 53... Kb3 {[%clk 0:00:04.6]} 54. Rc1 {[%clk 0:00:01.9]} 54... Rd2+
{[%clk 0:00:04.1]} 0-1

[Event "Early-Titled-Tuesday-Blitz-April-23-2024"]
[Site "Chess.com"]
[Date "2024.04.23"]
[Round "5"]
[White "Herzog2012"]
[Black "HamedWafa4"]
[Result "0-1"]
[WhiteElo "2552"]
[BlackElo "2733"]
[TimeControl "180+1"]
[EndTime "8:58:27 PDT"]
[Termination "HamedWafa4 won by resignation"]

1. e4 {[%clk 0:02:56.6]} 1... c5 {[%clk 0:02:58.3]} 2. Nf3 {[%clk 0:02:56.2]}
2... a6 {[%clk 0:02:57.3]} 3. Nc3 {[%clk 0:02:55.1]} 3... Nc6 {[%clk 0:02:56.7]}
4. d4 {[%clk 0:02:53.8]} 4... cxd4 {[%clk 0:02:56.8]} 5. Nxd4 {[%clk 0:02:54.7]}
5... d6 {[%clk 0:02:55.4]} 6. Bc4 {[%clk 0:02:42.2]} 6... Nf6 {[%clk 0:02:54.5]}
7. Nxc6 {[%clk 0:02:42]} 7... bxc6 {[%clk 0:02:53]} 8. e5 {[%clk 0:02:41.8]}
8... Ng4 {[%clk 0:02:51.2]} 9. Bf4 {[%clk 0:02:39.7]} 9... g5 {[%clk 0:02:38.2]}
10. e6 {[%clk 0:01:40.3]} 10... d5 {[%clk 0:02:12.4]} 11. Nxd5 {[%clk
0:01:02.8]} 11... cxd5 {[%clk 0:02:04.1]} 12. Bxd5 {[%clk 0:00:47.8]} 12... Bxe6
{[%clk 0:01:59.5]} 13. Bc6+ {[%clk 0:00:42.2]} 13... Bd7 {[%clk 0:01:59.2]} 14.
Bxa8 {[%clk 0:00:07.1]} 14... Qxa8 {[%clk 0:01:58.2]} 15. Qd4 {[%clk 0:00:06.2]}
15... Rg8 {[%clk 0:01:28.2]} 16. O-O-O {[%clk 0:00:05.9]} 16... Bc6 {[%clk
0:01:28.7]} 17. Bc7 {[%clk 0:00:05.3]} 17... f5 {[%clk 0:01:22.1]} 18. Rhe1
{[%clk 0:00:03.9]} 18... Qc8 {[%clk 0:01:17.4]} 19. Qc4 {[%clk 0:00:02.9]} 19...
Rg6 {[%clk 0:01:14.2]} 20. Rd8+ {[%clk 0:00:02.4]} 20... Qxd8 {[%clk 0:01:14.8]}
21. Bxd8 {[%clk 0:00:03.3]} 21... Kxd8 {[%clk 0:01:15.7]} 22. Re6 {[%clk
0:00:03.6]} 22... Rxe6 {[%clk 0:01:11.8]} 23. Qxe6 {[%clk 0:00:04.5]} 23... Bd7
{[%clk 0:01:12.5]} 24. Qf7 {[%clk 0:00:04.2]} 24... Bh6 {[%clk 0:01:08.6]} 25.
f3 {[%clk 0:00:04.5]} 25... Nf6 {[%clk 0:01:01.2]} 26. c4 {[%clk 0:00:04.2]}
26... g4+ {[%clk 0:00:58.4]} 27. Kc2 {[%clk 0:00:04.6]} 27... gxf3 {[%clk
0:00:58.5]} 28. gxf3 {[%clk 0:00:05.5]} 28... Bf4 {[%clk 0:00:49.9]} 29. h4
{[%clk 0:00:05.3]} 29... Bg3 {[%clk 0:00:45.7]} 30. c5 {[%clk 0:00:03.6]} 30...
Bxh4 {[%clk 0:00:43.2]} 31. Qf8+ {[%clk 0:00:04.1]} 31... Kc7 {[%clk 0:00:42.9]}
32. Qxe7 {[%clk 0:00:03.3]} 32... Bg3 {[%clk 0:00:43.4]} 33. b4 {[%clk
0:00:02.8]} 33... Nd5 {[%clk 0:00:41.8]} 34. Qxh7 {[%clk 0:00:03.1]} 34... Nxb4+
{[%clk 0:00:40.7]} 35. Kb3 {[%clk 0:00:03.6]} 35... Nc6 {[%clk 0:00:40.4]} 36.
Kc4 {[%clk 0:00:03.7]} 36... a5 {[%clk 0:00:38.8]} 37. Kd5 {[%clk 0:00:04.2]}
37... Nb4+ {[%clk 0:00:37.4]} 38. Kc4 {[%clk 0:00:04.9]} 38... Be5 {[%clk
0:00:36.6]} 39. Qe7 {[%clk 0:00:04.6]} 39... Nc6 {[%clk 0:00:36.4]} 40. Qf8
{[%clk 0:00:04.3]} 40... Bf4 {[%clk 0:00:32.2]} 41. Kd5 {[%clk 0:00:04.5]} 41...
Nb4+ {[%clk 0:00:28.1]} 42. Kc4 {[%clk 0:00:04.5]} 42... Be5 {[%clk 0:00:24.1]}
43. Qa8 {[%clk 0:00:04.5]} 43... Nc6 {[%clk 0:00:20.6]} 44. a4 {[%clk
0:00:03.6]} 44... Bc8 {[%clk 0:00:16.8]} 45. Kd5 {[%clk 0:00:03.8]} 45... Bb7
{[%clk 0:00:14.3]} 46. Qf8 {[%clk 0:00:04.5]} 46... Ne7+ {[%clk 0:00:10.6]} 47.
Ke6 {[%clk 0:00:03.1]} 47... Nc6 {[%clk 0:00:09.8]} 48. Qf7+ {[%clk 0:00:03.2]}
48... Kb8 {[%clk 0:00:10.2]} 49. Kxf5 {[%clk 0:00:03.7]} 49... Bc7 {[%clk
0:00:09.8]} 50. Ke4 {[%clk 0:00:03.6]} 50... Nd8+ {[%clk 0:00:09.8]} 51. Qd5
{[%clk 0:00:04]} 51... Bxd5+ {[%clk 0:00:10.2]} 52. Kxd5 {[%clk 0:00:04.9]}
52... Kb7 {[%clk 0:00:10.9]} 53. Kc4 {[%clk 0:00:02.5]} 53... Kc6 {[%clk
0:00:11.8]} 54. Kd4 {[%clk 0:00:02.5]} 54... Ne6+ {[%clk 0:00:12]} 55. Kc4
{[%clk 0:00:03]} 55... Nxc5 {[%clk 0:00:12.7]} 0-1